[Event "3rd Tal Heraklion-IM 2022"]
[Site "Heraklion"]
[Date "2022.04.30"]
[Round "5.3"]
[White "Langrock, Hannes"]
[Black "Anagnostopoulos, Konstantinos"]
[Result "1-0"]
[ECO "E05"]
[WhiteElo "2351"]
[BlackElo "2340"]
[Annotator "TA"]
[PlyCount "93"]
[EventDate "2022.04.18"]
[EventType "tourn"]
[EventCountry "GRE"]
[SourceTitle "playchess.com"]
[Source "ChessBase"]
[SourceQuality "1"]
[TimeControl "40/5400+30:1800+30"]

{[%evp 18,93,24,14,22,16,20,18,25,26,33,35,34,24,55,-6,-21,-14,-10,0,-19,-25,0,-25,-25,-40,-45,-52,-52,-59,-10,-34,-33,-35,5,5,279,286,431,408,416,402,387,272,419,423,458,412,402,323,441,371,553,475,615,579,1845,668,652,420,533,487,12834,12828,12835,12835,12842,12843,12842,12839,12844,12844,29987,29988,29988,12844,29989,29990]} 1. d4 {[%emt 0:01:30]} d5 {[%emt 0:02:03]} 2. Nf3 {[%emt 0:00:41]} Nf6 {[%emt 0:00:05]} 3. g3 {[%emt 0:00:10]} e6 {[%emt 0:00:07]} 4. Bg2 {[%emt 0:00:10]} Be7 {[%emt 0:00:04]} 5. O-O {[%emt 0:00:09]} O-O {[%emt 0:00:04]} 6. c4 {[%emt 0:00:13]} dxc4 {[%emt 0:00:07]} 7. Qc2 {[%emt 0:00:36]} a6 {[%emt 0:00:06]} 8. a4 {[%emt 0:01:12]} Bd7 {[%emt 0:00:05]} 9. Qxc4 {[%emt 0:01:36]} Bc6 {[%emt 0:00:08]} 10. Bg5 {[%emt 0:00:49]} h6 {[%emt 0:06:40] E05: Open Catalan: 5 Nf3 Be7.} 11. Bxf6 {[%emt 0:00:13]} Bxf6 {[%emt 0:00:04]} 12. Nc3 {[%emt 0:01:55]} Bxf3 {[%emt 0:04:25] The position is equal.} 13. Bxf3 {[%emt 0:00:10]} c6 {[%emt 0:00:57]} ({Much less strong is} 13... Nc6 14. Bxc6 bxc6 15. e3 $16 (15. Qxc6 Qxd4 16. Rfd1 Qb6 $11)) 14. e3 {[%emt 0:02:34]} a5 {[%emt 0:02:37]} 15. b4 {[%emt 0:02:19] [#]} e5 $146 {[%emt 0:07:23][%cal Re5d4]} ({Predecessor:} 15... axb4 16. Qxb4 Ra7 17. a5 Nd7 18. a6 Be7 19. Qc4 bxa6 20. Rxa6 Nb6 21. Qa2 Rxa6 22. Qxa6 {½-½ (33) Ding,L (2774)-Carlsen,M (2837) Saint Louis 2017}) 16. d5 {[%emt 0:32:02]} (16. Rab1 $14) 16... e4 $1 $11 {[%emt 0:08:02]} 17. Bxe4 {[%emt 0:01:06][%cal Rd5c6]} cxd5 {[%emt 0:07:53]} 18. Nxd5 {[%emt 0:08:12]} Bxa1 {[%emt 0:00:25]} 19. Rxa1 {[%emt 0:00:03]} Nd7 {[%emt 0:04:47]} 20. Rb1 {[%emt 0:07:03]} Re8 {[%emt 0:04:30]} 21. Bg2 {[%emt 0:03:37]} Ne5 {[%emt 0:15:04]} 22. Qb5 {[%emt 0:09:30]} axb4 {[%emt 0:00:28]} 23. Qxb4 {[%emt 0:03:06]} Nc6 {[%emt 0:07:49]} (23... Qa5 $15) 24. Qb5 {[%emt 0:01:27]} ({Don't go for} 24. Qxb7 $2 Rb8 25. Qxc6 Rxb1+ 26. Bf1 Re6 $19) (24. Qf4 $5 {[%cal Rb1b7]}) 24... Re5 {[%emt 0:08:19]} 25. Rd1 {[%emt 0:01:24]} ({Don't blunder} 25. Qxb7 $2 Rb8 26. Qxb8 Nxb8 $19) 25... Qa5 {[%emt 0:04:58]} 26. Qxb7 {[%emt 0:01:21]} Qxa4 {[%emt 0:03:58][%mdl 8192] [#] Black cannot hold the game after this.} (26... Re6 $11) 27. Nc3 $1 $18 {[%emt 0:03:30][%csl LRa4,LRc6]} Qa5 {[%emt 0:04:11]} (27... Qa6 {might work better.} 28. Bxc6 Qxb7 29. Bxb7 Rb8) 28. Qxc6 {[%emt 0:01:42]} Rb8 {[%emt 0:00:05]} 29. Nd5 {[%emt 0:01:45]} Re6 {[%emt 0:00:03]} 30. Qc3 {[%emt 0:01:19]} Qa4 {[%emt 0:00:09]} (30... Qxc3 {is a better defense.} 31. Nxc3 g6) 31. Ra1 {[%emt 0:00:51]} Qg4 {[%emt 0:00:10]} 32. h3 {[%emt 0:01:17]} Qf5 {[%emt 0:00:18]} 33. e4 {[%emt 0:00:50]} Qg5 {[%emt 0:00:15]} 34. Kh2 {[%emt 0:02:33]} h5 {[%emt 0:00:21]} (34... Qe5 {was called for.} 35. Qa5 Rb2) 35. h4 {[%emt 0:00:49]} Qd8 {[%emt 0:00:03]} 36. Bf3 {[%emt 0:01:06]} g5 {[%emt 0:01:06]} 37. hxg5 {[%emt 0:01:47]} (37. Bxh5 $142 Reb6 38. Nxb6 Qxb6 39. Qf3) 37... Qxg5 {[%emt 0:00:15]} 38. Qe3 {[%emt 0:01:33]} Qe5 {[%emt 0:00:22]} 39. Qf4 {[%emt 0:01:23]} Qxa1 {[%emt 0:01:27]} (39... Qxf4 $142 40. gxf4 h4) 40. Qxb8+ {[%emt 0:00:00]} Kg7 {[%emt 0:00:00]} 41. Nf4 {[%emt 0:02:38]} Rh6 {[%emt 0:00:25]} 42. Nxh5+ {[%emt 0:00:45]} Kh7 {[%emt 0:00:25]} 43. Qf4 {[%emt 0:00:44]} Qa2 {[%emt 0:00:31]} 44. Bg4 {[%emt 0:02:05]} Kg8 {[%emt 0:01:27]} 45. Qb8+ {[%emt 0:02:27]} Kh7 {[%emt 0:00:19]} 46. Bf5+ {[%emt 0:00:16]} Rg6 {[%emt 0:00:15]} 47. Kg2 {[%emt 0:03:49] Weighted Error Value: White=0.49/Black=0.61} 1-0

[Event "3rd Tal Heraklion-IM 2022"]
[Site "Heraklion"]
[Date "2022.04.30"]
[Round "5.4"]
[White "Peng, Li Min"]
[Black "Sandalakis, Nikolaos"]
[Result "1-0"]
[ECO "D94"]
[WhiteElo "2517"]
[BlackElo "2240"]
[Annotator "TA"]
[PlyCount "139"]
[EventDate "2022.04.18"]
[EventType "tourn"]
[EventCountry "GRE"]
[SourceTitle "playchess.com"]
[Source "ChessBase"]
[SourceQuality "1"]
[TimeControl "40/5400+30:1800+30"]

{[%evp 18,139,33,16,25,18,21,29,22,2,0,0,0,0,0,0,54,40,65,65,65,66,77,57,90,100,99,87,98,98,89,20,27,25,24,29,25,28,33,23,79,79,90,57,204,129,170,164,164,143,210,210,210,210,210,210,210,210,210,210,210,210,210,210,210,210,210,210,585,487,662,662,654,654,654,654,640,640,640,640,640,472,457,443,745,690,1007,973,3970,3890,3457,3207,3035,2925,2795,2701,2275,2047,1810,1555,29965,11796,29975,29976,29978,29979,29978,29979,29979,29978,12832,6199,29984,29986,29986,29987,29988,29988,29995,29996,29997,29998,29998,29999]} 1. Nf3 {[%emt 0:00:56]} d5 {[%emt 0:00:12]} 2. e3 {[%emt 0:00:24]} Nf6 {[%emt 0:00:43]} 3. c4 {[%emt 0:00:54]} c6 {[%emt 0:01:48]} 4. Nc3 {[%emt 0:00:44]} g6 {[%emt 0:00:45]} 5. d4 {[%emt 0:00:16]} Bg7 {[%emt 0:00:21]} 6. Be2 {[%emt 0:00:19]} O-O {[%emt 0:01:39]} 7. O-O {[%emt 0:00:07]} Bg4 {[%emt 0:06:18]} 8. cxd5 {[%emt 0:00:08]} cxd5 {[%emt 0:02:27]} 9. Qb3 {[%emt 0:00:07]} b6 {[%emt 0:06:32]} 10. h3 {[%emt 0:04:20]} Bc8 {[%emt 0:00:41] now scores much better than the old 10...Bxf3. D94: Grünfeld: 4 Nf3 Bg7 5 e3.} 11. Ne5 {[%emt 0:00:41]} Bb7 {[%emt 0:01:18]} 12. Bd2 {[%emt 0:00:40]} Nc6 {[%emt 0:09:34] White has an edge.} 13. Rac1 {[%emt 0:00:17]} Nxe5 {[%emt 0:13:34]} 14. dxe5 {[%emt 0:00:09]} Nd7 {[%emt 0:00:06]} 15. f4 $36 {[%emt 0:15:33][%mdl 2048] White is pushing.} Nc5 {[%emt 0:04:42] [#]} 16. Qd1 $146 {[%emt 0:01:59]} ({Predecessor:} 16. Qc2) 16... f6 {[%emt 0:07:19]} (16... d4 $11 17. Nb5 d3) 17. b4 $14 {[%emt 0:02:37]} Ne4 {[%emt 0:09:26]} 18. Nxe4 {[%emt 0:00:15]} dxe4 {[%emt 0:00:04]} 19. Qb3+ {[%emt 0:02:20]} Bd5 {[%emt 0:03:32]} 20. Bc4 {[%emt 0:00:06] White is more active.} e6 {[%emt 0:07:48]} 21. exf6 {[%emt 0:00:30]} Bxf6 {[%emt 0:00:07]} 22. Bc3 {[%emt 0:00:15]} Bxc3 {[%emt 0:04:56]} 23. Rxc3 {[%emt 0:00:11]} ({But not} 23. Qxc3 Rc8 24. Qd4 Bxc4 25. Rxc4 Qd5 26. Rxc8 Rxc8 $14) 23... Rc8 {[%emt 0:00:53]} 24. Rd1 {[%emt 0:01:27]} (24. b5 $16) 24... Rxc4 $1 $11 {[%emt 0:02:53]} 25. Qxc4 {[%emt 0:00:06]} Bxc4 {[%emt 0:02:24]} 26. Rxd8 {[%emt 0:00:02]} Rxd8 {[%emt 0:00:30]} 27. Rxc4 {[%emt 0:00:10][%mdl 4096] Endgame KR-KR} Rd1+ {[%emt 0:03:50]} 28. Kh2 {[%emt 0:00:16]} Rd3 {[%emt 0:03:37]} (28... Ra1 $11 {remains equal.}) 29. Rxe4 $16 {[%emt 0:00:34]} Kf7 {[%emt 0:00:21]} 30. a4 {[%emt 0:00:24]} a5 {[%emt 0:02:43] Black cannot hold the game after this.} (30... a6 $1 $14) 31. b5 {[%emt 0:01:08]} h5 {[%emt 0:03:14]} 32. Kg3 {[%emt 0:00:16]} Ra3 {[%emt 0:01:38]} 33. Kf3 {[%emt 0:00:05]} h4 {[%emt 0:00:23]} (33... Rc3 $16 34. g4 hxg4+ 35. hxg4 Rc2) 34. Rc4 $18 {[%emt 0:09:03]} Kf6 {[%emt 0:00:13]} 35. Rc6 {[%emt 0:05:14]} Rxa4 {[%emt 0:00:09]} 36. Rxb6 {[%emt 0:00:02]} Ra3 {[%emt 0:01:03]} 37. Rb8 {[%emt 0:00:45] b6 is the strong threat.} Rb3 {[%emt 0:00:40]} 38. b6 {[%emt 0:00:10]} Kg7 {[%emt 0:00:24]} 39. b7 {[%emt 0:00:11] Black must now prevent Kg4.} Rb2 {[%emt 0:00:31]} 40. Ra8 {[%emt 0:18:00]} Rxb7 {[%emt 0:00:00]} 41. Rxa5 {[%emt 0:30:03]} Kf6 {[%emt 0:14:51]} 42. Ra8 {[%emt 0:00:02] Inhibits Rb8.} g5 $2 {[%emt 0:05:36]} (42... Rb4 {is a better chance.} 43. Rh8 e5 44. Rxh4 e4+ 45. Kg4 Rb2) 43. Rh8 {[%emt 0:00:02]} gxf4 {[%emt 0:02:18]} 44. exf4 {[%emt 0:00:01]} Rb3+ {[%emt 0:00:27] [#]} 45. Kf2 $1 {[%emt 0:00:01]} Rb2+ {[%emt 0:01:07] [#]} 46. Kg1 $1 {[%emt 0:00:01]} Kf5 {[%emt 0:01:46]} 47. Rxh4 {[%emt 0:00:05]} Rb1+ {[%emt 0:05:45]} 48. Kh2 {[%emt 0:00:33]} Rb3 {[%emt 0:02:11]} 49. Rg4 {[%emt 0:00:37] Strongly threatening Rg3.} Re3 {[%emt 0:00:58]} 50. Rg3 {[%emt 0:03:01]} Re1 {[%emt 0:00:42]} (50... Re2 $142 51. Rf3 Kg6) 51. Rf3 {[%emt 0:00:45]} Re2 {[%emt 0:00:09]} 52. Kg3 {[%emt 0:00:11]} Ra2 {[%emt 0:00:23]} 53. Re3 {[%emt 0:00:44]} Ra7 {[%emt 0:00:16]} 54. Re5+ {[%emt 0:00:11]} Kf6 {[%emt 0:00:03]} 55. Kg4 {[%emt 0:00:08]} Rg7+ {[%emt 0:00:21]} 56. Rg5 {[%emt 0:00:03]} Ra7 {[%emt 0:00:12]} 57. h4 {[%emt 0:00:09][%cal Bh3h4,Bh4h5][%mdl 32] And now h5 would win.} Ra2 {[%emt 0:00:29]} 58. g3 {[%emt 0:00:07][%cal Bg2g3,Bg3g4,Bg4g5,Bg5g6][%mdl 32]} Ra1 {[%emt 0:00:11]} 59. h5 {[%emt 0:00:17] Threatening mate with h6.} Rh1 {[%emt 0:00:19]} 60. Rg6+ {[%emt 0:00:04]} Kf7 {[%emt 0:00:08]} 61. Kg5 {[%emt 0:00:07]} Ra1 {[%emt 0:00:33]} 62. Rf6+ {[%emt 0:00:17]} Ke7 {[%emt 0:00:08]} 63. g4 {[%emt 0:00:20]} Rg1 {[%emt 0:01:06]} 64. Rh6 {[%emt 0:00:18]} (64. Rg6 $142 Rh1 65. h6) 64... Kf7 {[%emt 0:00:15]} 65. Rh7+ {[%emt 0:00:23] White mates.} Kf8 {[%emt 0:00:38]} 66. Ra7 {[%emt 0:00:41]} Rg2 {[%emt 0:00:20]} 67. Kf6 {[%emt 0:00:12][%cal Ra7a8]} Kg8 {[%emt 0:00:09]} 68. g5 {[%emt 0:00:06]} Rf2 {[%emt 0:00:50]} 69. Ra8+ {[%emt 0:00:04]} Kh7 {[%emt 0:00:06]} 70. g6+ {[%emt 0:00:34] Weighted Error Value: White=0.07 (flawless) /Black=0.30} 1-0

[Event "3rd Tal Heraklion-IM 2022"]
[Site "Heraklion"]
[Date "2022.04.30"]
[Round "5.5"]
[White "Milonakis, Georgios"]
[Black "Lirindzakis, Timotheos"]
[Result "1/2-1/2"]
[ECO "D76"]
[WhiteElo "2215"]
[BlackElo "2164"]
[Annotator "TA"]
[PlyCount "63"]
[EventDate "2022.04.18"]
[EventType "tourn"]
[EventCountry "GRE"]
[SourceTitle "playchess.com"]
[Source "ChessBase"]
[SourceQuality "1"]
[TimeControl "40/5400+30:1800+30"]

{[%evp 23,63,0,0,0,0,-16,-18,-18,-18,-18,-15,-16,-8,-34,-48,-39,-54,-45,-22,-34,-47,-46,-16,-16,-16,-15,0,0,0,0,0,0,0,0,0,0,0,0,0,0,0,0]} 1. c4 {[%emt 0:01:53]} g6 {[%emt 0:01:53]} 2. d4 {[%emt 0:02:21]} Nf6 {[%emt 0:00:03]} 3. Nf3 {[%emt 0:03:53]} Bg7 {[%emt 0:00:15]} 4. g3 {[%emt 0:00:08]} O-O {[%emt 0:02:07]} 5. Bg2 {[%emt 0:00:32]} d5 {[%emt 0:00:52]} 6. cxd5 {[%emt 0:00:28]} Nxd5 {[%emt 0:00:08]} 7. O-O {[%emt 0:03:06]} Nb6 {[%emt 0:00:50]} 8. Nc3 {[%emt 0:03:36]} Nc6 {[%emt 0:00:42]} 9. e3 {[%emt 0:06:42]} e5 {[%emt 0:00:05]} 10. dxe5 {[%emt 0:05:00]} Nxe5 {[%emt 0:04:28]} 11. Nxe5 {[%emt 0:00:09]} Qxd1 {[%emt 0:11:34]} 12. Rxd1 {[%emt 0:00:07]} Bxe5 {[%emt 0:00:11]} 13. h3 {[%emt 0:08:44] D76: Fianchetto Grünfeld: Main Line with 7...Nb6.} c6 {[%emt 0:03:56]} 14. f4 {[%emt 0:03:13]} Bg7 {[%emt 0:14:43]} 15. e4 {[%emt 0:05:21]} Be6 {[%emt 0:04:15] [#]} 16. e5 $146 {[%emt 0:00:42]} ({Predecessor:} 16. Bf1 Bc4 17. Bxc4 Nxc4 18. e5 f6 19. b3 Nb6 20. exf6 Bxf6 21. Bb2 Rfe8 22. Kf2 {½-½ (30) Pitic,J (2165)-Bewersdorff,O (2355) Mainz 1995}) 16... Rfd8 {[%emt 0:06:42]} 17. Be3 {[%emt 0:02:41]} f6 {[%emt 0:05:38]} 18. Bd4 {[%emt 0:19:36]} fxe5 {[%emt 0:03:02]} 19. Bxe5 {[%emt 0:11:00]} Bxe5 {[%emt 0:08:44]} 20. fxe5 {[%emt 0:00:05]} Nc4 {[%emt 0:01:09]} 21. Ne4 {[%emt 0:00:12]} Nxe5 {[%emt 0:06:12]} 22. Nc5 {[%emt 0:00:18][%csl LRb7,LRe6]} Rxd1+ {[%emt 0:03:27]} 23. Rxd1 {[%emt 0:00:05] The position is equal.} Bxa2 {[%emt 0:00:20]} 24. Re1 {[%emt 0:05:54] [#]} b6 $1 {[%emt 0:05:51]} 25. Rxe5 {[%emt 0:04:41]} bxc5 {[%emt 0:00:07]} 26. Rxc5 $11 {[%emt 0:00:50][%mdl 4096] Endgame KRB-KRB} Bf7 {[%emt 0:05:19]} 27. Rxc6 {[%emt 0:03:25]} Rd8 {[%emt 0:03:04]} 28. Rc7 {[%emt 0:01:17]} Rd1+ {[%emt 0:01:41]} 29. Kh2 {[%emt 0:01:01]} Rd2 {[%emt 0:00:43] [#] ...Bd5 is the strong threat.} 30. Kg1 {[%emt 0:00:08]} a5 {[%emt 0:00:42]} 31. Ra7 {[%emt 0:00:49]} Rxb2 {[%emt 0:01:27] Strongly threatening ...Ra2.} 32. Rxa5 {[%emt 0:00:12] Weighted Error Value: White=0.03 (flawless) /Black=0.04 (flawless)} 1/2-1/2

[Event "3rd Tal Heraklion-IM 2022"]
[Site "Heraklion"]
[Date "2022.04.30"]
[Round "6.1"]
[White "Kotsinis, Alexandros"]
[Black "Lirindzakis, Timotheos"]
[Result "1/2-1/2"]
[ECO "C92"]
[WhiteElo "2055"]
[BlackElo "2164"]
[Annotator "TA"]
[PlyCount "31"]
[EventDate "2022.04.18"]
[EventType "tourn"]
[EventCountry "GRE"]
[SourceTitle "playchess.com"]
[Source "ChessBase"]
[SourceQuality "1"]
[TimeControl "40/5400+30:1800+30"]

{[%evp 30,31,21,0]} 1. e4 {[%emt 0:09:15]} e5 {[%emt 0:00:37]} 2. Nf3 {[%emt 0:00:06]} Nc6 {[%emt 0:00:37]} 3. Bb5 {[%emt 0:00:08][%cal Bf1b5,Bb5a4,Ba4b3][%mdl 32]} a6 {[%emt 0:00:19]} 4. Ba4 {[%emt 0:00:07]} Nf6 {[%emt 0:00:32]} 5. O-O {[%emt 0:00:27]} Be7 {[%emt 0:00:33]} 6. Re1 {[%emt 0:00:23]} b5 {[%emt 0:00:17]} 7. Bb3 {[%emt 0:00:04]} d6 {[%emt 0:00:27]} 8. c3 {[%emt 0:00:06]} O-O {[%emt 0:00:19]} 9. h3 {[%emt 0:00:42]} Re8 {[%emt 0:00:48]} 10. Ng5 {[%emt 0:00:51]} Rf8 {[%emt 0:00:55]} 11. Nf3 {[%emt 0:00:08]} Bb7 {[%emt 0:00:28]} 12. d4 {[%emt 0:01:16]} Re8 {[%emt 0:00:39]} 13. Ng5 {[%emt 0:00:32]} Rf8 {[%emt 0:00:25]} 14. Nf3 {[%emt 0:00:11]} Re8 {[%emt 0:00:39] [#]} 15. Ng5 $146 {[%emt 0:01:13]} ({Predecessor:} 15. Nbd2 Bf8 16. a4 exd4 17. cxd4 Na5 18. Bc2 b4 19. b3 g6 20. Bb2 d5 21. e5 Nh5 22. Nf1 Rc8 23. Ne3 c5 24. dxc5 Rxc5 25. Ng4 Nc6 26. Qd2 d4 {1-0 (65) Giri,A (2772)-Le,Q (2709) chess24.com INT 2022}) 15... Rf8 {[%emt 0:00:32]} 16. Nf3 {[%emt 0:00:08] 16.Nf3 has lost popularity.} 1/2-1/2

[Event "3rd Tal Heraklion-IM 2022"]
[Site "Heraklion"]
[Date "2022.05.02"]
[Round "7.1"]
[White "Bracker, Arne"]
[Black "Kotsinis, Alexandros"]
[Result "1-0"]
[ECO "C83"]
[WhiteElo "2276"]
[BlackElo "2055"]
[Annotator "TA"]
[PlyCount "83"]
[EventDate "2022.04.18"]
[EventType "tourn"]
[EventCountry "GRE"]
[SourceTitle "playchess.com"]
[Source "ChessBase"]
[SourceQuality "1"]
[TimeControl "40/5400+30:1800+30"]

{[%evp 21,83,36,25,37,48,36,45,37,42,32,56,43,93,29,32,27,70,52,94,106,111,112,110,110,128,134,130,120,133,123,150,72,91,-69,0,-19,0,0,0,0,0,0,0,0,0,0,0,0,0,0,55,101,104,67,91,107,104,8,404,398,1373,1169,1170,1075]} 1. e4 {[%emt 0:00:03] Karjakin,S} e5 {[%emt 0:00:53]} 2. Nf3 {[%emt 0:00:08]} Nc6 {[%emt 0:00:06]} 3. Bb5 {[%emt 0:00:08]} a6 {[%emt 0:00:05]} 4. Ba4 {[%emt 0:00:05]} Nf6 {[%emt 0:00:06][%cal Bg8f6,Bf6e4,Be4c5][%mdl 32]} 5. O-O {[%emt 0:00:14]} Nxe4 {[%emt 0:00:29]} 6. d4 {[%emt 0:00:33]} b5 {[%emt 0:00:09]} 7. Bb3 {[%emt 0:00:10]} d5 {[%emt 0:00:05]} 8. dxe5 {[%emt 0:00:45]} Be6 {[%emt 0:00:05]} 9. Nbd2 {[%emt 0:01:21]} Nc5 {[%emt 0:00:52]} 10. c3 {[%emt 0:00:47]} Be7 {[%emt 0:00:08]} 11. Bc2 {[%emt 0:01:44]} d4 {[%emt 0:00:55]} 12. Nb3 {[%emt 0:01:20] C83: Open Ruy Lopez: 9 c3 Be7.} d3 {[%emt 0:00:07]} 13. Bb1 {[%emt 0:01:43]} Nxb3 {[%emt 0:00:42]} 14. axb3 {[%emt 0:00:05] White is slightly better.} Bf5 {[%emt 0:00:04]} 15. b4 {[%emt 0:01:28]} O-O {[%emt 0:01:43]} 16. Re1 {[%emt 0:01:14]} Qd5 {[%emt 0:09:34] [#]} ({Black should try} 16... h6 $14) 17. Ba2 $146 {[%emt 0:01:55]} (17. h3 $16) ({Predecessor:} 17. h3 Rfd8 18. g4 Be6 19. Re3 h5 20. Qxd3 Qxd3 21. Bxd3 hxg4 22. hxg4 Bd5 23. Bc2 Bxf3 24. Rxf3 Nxe5 {1-0 (52) Karjakin,S (2723)-Mamedyarov,S (2719) Khanty-Mansiysk 2009 CBM 134 [Karjakin,S]}) 17... Qd7 $11 {[%emt 0:00:57]} 18. Bg5 {[%emt 0:28:40]} a5 {[%emt 0:21:38]} 19. Bxe7 {[%emt 0:06:25]} Qxe7 {[%emt 0:00:05]} 20. Bd5 {[%emt 0:07:45]} Qd7 {[%emt 0:00:37]} 21. Bxc6 {[%emt 0:05:09]} Qxc6 {[%emt 0:00:01]} 22. bxa5 {[%emt 0:03:49]} Qd5 {[%emt 0:15:05]} 23. Nd4 {[%emt 0:01:55]} Bg6 {[%emt 0:07:55][%cal Ob5b4]} 24. Qb3 {[%emt 0:00:56]} Rfd8 {[%emt 0:17:07]} 25. Qxd5 {[%emt 0:08:47]} (25. Qxb5 d2 26. Red1 Qxb5 27. Nxb5 Bc2 $11) 25... Rxd5 {[%emt 0:00:03]} 26. b4 {[%emt 0:00:09]} (26. h3 $142) 26... c5 $16 {[%emt 0:01:15]} 27. Nxb5 {[%emt 0:01:00]} (27. Nf3 $16) 27... d2 {[%emt 0:00:27]} (27... cxb4 $1 $15 28. Nc7 Rdxa5 29. Nxa8 d2) 28. Red1 {[%emt 0:01:54]} Bc2 {[%emt 0:00:27]} 29. Nc7 $1 {[%emt 0:01:04][%csl LRa8,LRd5]} Bxd1 {[%emt 0:00:21]} 30. Nxd5 $11 {[%emt 0:01:57][%mdl 4096] Endgame KRB-KRN} ({Don't blunder} 30. Rxd1 $2 Rxe5 31. Kf1 cxb4 $1 32. cxb4 (32. Nxa8 {is a self mate.} bxc3 33. Rb1 Re8 34. g3 c2 35. Ra1 d1=Q+) 32... Rc8 33. Rxd2 Re7 $19) 30... Be2 {[%emt 0:04:06]} 31. Ne3 {[%emt 0:00:40] Against d1Q+. f3 is the strong threat.} cxb4 {[%emt 0:00:10]} 32. cxb4 {[%emt 0:06:59]} Rc8 {[%emt 0:09:30] ( -> ...Rc1+)} 33. f3 $1 {[%emt 0:00:12] aiming for Kf2.} Rc1+ {[%emt 0:01:03]} 34. Kf2 {[%emt 0:00:04]} Rxa1 {[%emt 0:08:05]} 35. Kxe2 {[%emt 0:00:11] KR-KN} Rb1 {[%emt 0:00:21]} (35... d1=R $11 36. Nxd1 Ra4) 36. Kxd2 $14 {[%emt 0:01:35] Threatens to win with Nc2.} Rxb4 {[%emt 0:00:06] [#]} 37. Kc3 $1 {[%emt 0:01:14]} Rb5 {[%emt 0:02:47]} (37... Ra4 $2 38. Nc4 $18) 38. Nc4 {[%emt 0:00:07] Hoping for Kd4.} Kf8 {[%emt 0:00:24]} 39. Kd4 {[%emt 0:01:15]} ({Not} 39. a6 Rb8 40. h4 Ra8 $17) ({Better is} 39. f4 $16) 39... Ke7 $2 {[%emt 0:00:49][%mdl 8192]} (39... Rb1 $1 $11) 40. a6 $18 {[%emt 0:00:00][%cal Ba5a6,Ba6a7][%mdl 32] a7 would kill now.} Rb1 $2 {[%emt 0:00:00]} (40... Rb4 41. Kc5 Ra4) 41. a7 {[%emt 0:04:05]} Ra1 {[%emt 0:01:25]} 42. Nb6 {[%emt 0:00:23] Weighted Error Value: White=0.22 (precise) /Black=0.31} 1-0

[Event "3rd Tal Heraklion-IM 2022"]
[Site "Heraklion"]
[Date "2022.05.02"]
[Round "7.2"]
[White "Langrock, Hannes"]
[Black "Rakshitta Ravi"]
[Result "1/2-1/2"]
[ECO "E06"]
[WhiteElo "2351"]
[BlackElo "2240"]
[Annotator "TA"]
[PlyCount "31"]
[EventDate "2022.04.18"]
[EventType "tourn"]
[EventCountry "GRE"]
[SourceTitle "playchess.com"]
[Source "ChessBase"]
[SourceQuality "1"]
[TimeControl "40/5400+30:1800+30"]

{[%evp 14,31,31,20,22,27,19,15,25,15,24,0,0,0,0,0,0,-8,0,-12]} 1. d4 {[%emt 0:00:07]} Nf6 {[%emt 0:02:44]} 2. Nf3 {[%emt 0:00:38]} d5 {[%emt 0:00:27]} 3. g3 {[%emt 0:00:29]} e6 {[%emt 0:00:21]} 4. Bg2 {[%emt 0:00:07]} Be7 {[%emt 0:00:05]} 5. O-O {[%emt 0:00:07]} O-O {[%emt 0:00:09]} 6. c4 {[%emt 0:00:20]} dxc4 {[%emt 0:00:07]} 7. Qc2 {[%emt 0:00:17]} c6 {[%emt 0:01:18]} 8. Qxc4 {[%emt 0:01:24]} b5 {[%emt 0:00:11] E06: Closed Catalan: Early deviations.} 9. Qb3 {[%emt 0:02:45]} Bb7 {[%emt 0:04:18]} 10. Rd1 {[%emt 0:01:13]} Nbd7 {[%emt 0:10:18]} 11. Ne5 {[%emt 0:05:31]} Qb6 {[%emt 0:10:20] [#]} 12. Be3 $146 {[%emt 0:17:27][%cal Od4d5]} ({Predecessor:} 12. Nxd7 Nxd7 13. Nc3 b4 14. Na4 Qb5 15. Be3 Rad8 16. Qc2 Ba6 17. Bf3 e5 18. Qxc6 Qxc6 19. Bxc6 Bxe2 {1-0 (54) Barber,P (2336)-Graham,O (2244) ICCF email 2018}) 12... c5 {[%emt 0:00:00] The position is equal.} 13. Bxb7 {[%emt 0:00:34]} Qxb7 {[%emt 0:00:00]} 14. Nxd7 {[%emt 0:00:28]} Nxd7 {[%emt 0:03:01]} 15. Nc3 {[%emt 0:06:53]} cxd4 {[%emt 0:00:21]} 16. Bxd4 {[%emt 0:00:00] An interesting draw.  Weighted Error Value: White=0.05 (flawless) /Black=0.04 (flawless)} 1/2-1/2